[Event "*** Titled Tuesday Blitz"]
[Site "Chess.com"]
[Date "2019.12.03"]
[Round "4"]
[White "pulvettd"]
[Black "kinga2008"]
[Result "1-0"]
[WhiteElo "2615"]
[BlackElo "1979"]
[TimeControl "180+2"]
[EndTime "13:51:43 PST"]
[Termination "pulvettd won by resignation"]

1. d4 {[%clk 0:03:01.9]} 1... Nf6 {[%clk 0:03:00.2]} 2. c4 {[%clk 0:03:01.1]}
2... d6 {[%clk 0:02:55.5]} 3. Nf3 {[%clk 0:03:00.2]} 3... g6 {[%clk 0:02:53.3]}
4. g3 {[%clk 0:03:00.4]} 4... Bg7 {[%clk 0:02:52.6]} 5. Bg2 {[%clk 0:03:00.8]}
5... O-O {[%clk 0:02:50.5]} 6. O-O {[%clk 0:03:02.7]} 6... e5 {[%clk 0:02:42.3]}
7. Nc3 {[%clk 0:03:04.6]} 7... exd4 {[%clk 0:02:34.6]} 8. Nxd4 {[%clk
0:03:05.2]} 8... Nbd7 {[%clk 0:02:29.7]} 9. Qc2 {[%clk 0:03:05.1]} 9... Nc5
{[%clk 0:02:25.7]} 10. Rd1 {[%clk 0:03:03.8]} 10... Rb8 {[%clk 0:02:24.4]} 11.
h3 {[%clk 0:02:53.8]} 11... Bd7 {[%clk 0:02:22.1]} 12. e4 {[%clk 0:02:50]} 12...
Qc8 {[%clk 0:02:19.4]} 13. Kh2 {[%clk 0:02:47.7]} 13... Ne8 {[%clk 0:02:18.5]}
14. Be3 {[%clk 0:02:39.7]} 14... a6 {[%clk 0:02:13.6]} 15. Nd5 {[%clk
0:02:37.7]} 15... Qd8 {[%clk 0:02:07.6]} 16. Nb3 {[%clk 0:02:36.7]} 16... b6
{[%clk 0:01:49.5]} 17. Bd4 {[%clk 0:02:27]} 17... Nf6 {[%clk 0:01:42.5]} 18. Bc3
{[%clk 0:02:05.9]} 18... Ba4 {[%clk 0:01:36.4]} 19. Nxf6+ {[%clk 0:01:52.1]}
19... Bxf6 {[%clk 0:01:35.8]} 20. e5 {[%clk 0:01:53.2]} 20... Be7 {[%clk
0:01:23.6]} 21. Bd5 {[%clk 0:01:33.9]} 21... Qe8 {[%clk 0:01:10.7]} 22. Re1
{[%clk 0:01:31.8]} 22... dxe5 {[%clk 0:01:01.5]} 23. Bxe5 {[%clk 0:01:31.4]}
23... Qd7 {[%clk 0:00:51]} 24. Rad1 {[%clk 0:01:29.7]} 24... Bd6 {[%clk
0:00:41.8]} 25. Nxc5 {[%clk 0:01:17.3]} 25... bxc5 {[%clk 0:00:19.1]} 26. b3
{[%clk 0:01:14.6]} 26... Bc6 {[%clk 0:00:19.4]} 27. Bb2 {[%clk 0:01:05.7]} 27...
Rbe8 {[%clk 0:00:18.5]} 28. Qc3 {[%clk 0:01:04.1]} 28... Be5 {[%clk 0:00:05.9]}
29. Rxe5 {[%clk 0:01:04.3]} 29... Bxd5 {[%clk 0:00:06.9]} 30. Rexd5 {[%clk
0:01:03.2]} 1-0

[Event "*** Titled Tuesday Blitz"]
[Site "Chess.com"]
[Date "2019.12.03"]
[Round "4"]
[White "RainForestt"]
[Black "LuckIsMySkill"]
[Result "0-1"]
[WhiteElo "2524"]
[BlackElo "2737"]
[TimeControl "180+2"]
[EndTime "13:51:46 PST"]
[Termination "LuckIsMySkill won on time"]

1. d4 {[%clk 0:02:41.9]} 1... Nf6 {[%clk 0:02:57]} 2. Nf3 {[%clk 0:02:40.8]}
2... e6 {[%clk 0:02:55.7]} 3. Bf4 {[%clk 0:02:39]} 3... b5 {[%clk 0:02:55]} 4.
e3 {[%clk 0:02:35.5]} 4... a6 {[%clk 0:02:55.9]} 5. Bd3 {[%clk 0:02:29.6]} 5...
Bb7 {[%clk 0:02:57]} 6. O-O {[%clk 0:02:27.9]} 6... Bd6 {[%clk 0:02:56.7]} 7.
Nbd2 {[%clk 0:02:02.5]} 7... Bxf4 {[%clk 0:02:48.5]} 8. exf4 {[%clk 0:01:58.7]}
8... d6 {[%clk 0:02:49.8]} 9. f5 {[%clk 0:01:43.3]} 9... exf5 {[%clk 0:02:50.3]}
10. Re1+ {[%clk 0:01:42.4]} 10... Kf8 {[%clk 0:02:51.6]} 11. Bxf5 {[%clk
0:01:39.6]} 11... g6 {[%clk 0:02:52.7]} 12. Be4 {[%clk 0:01:34]} 12... Nxe4
{[%clk 0:02:46.4]} 13. Nxe4 {[%clk 0:01:35.9]} 13... Nd7 {[%clk 0:02:43.8]} 14.
d5 {[%clk 0:01:25.6]} 14... h6 {[%clk 0:02:36.1]} 15. Qd4 {[%clk 0:01:20.1]}
15... Kg8 {[%clk 0:02:37.2]} 16. a4 {[%clk 0:01:02.4]} 16... Kh7 {[%clk
0:02:33.9]} 17. Re3 {[%clk 0:00:41]} 17... Re8 {[%clk 0:02:28.6]} 18. Nfg5+
{[%clk 0:00:38.7]} 18... Kg8 {[%clk 0:02:27.9]} 19. Rh3 {[%clk 0:00:38.2]} 19...
Re5 {[%clk 0:02:04.7]} 20. Rxh6 {[%clk 0:00:16.6]} 20... Bxd5 {[%clk 0:02:05.3]}
21. f4 {[%clk 0:00:16.2]} 21... c5 {[%clk 0:02:06.3]} 22. Qd3 {[%clk 0:00:03.6]}
22... Bxe4 {[%clk 0:01:30.4]} 23. Nxe4 {[%clk 0:00:01.7]} 23... Re6 {[%clk
0:01:15.4]} 24. Qh3 {[%clk 0:00:02]} 24... Rxe4 {[%clk 0:01:16.2]} 25. Rh8+
{[%clk 0:00:02.9]} 25... Kg7 {[%clk 0:01:17.8]} 26. Rxd8 {[%clk 0:00:04.8]}
26... Rxd8 {[%clk 0:01:18.4]} 27. Qf3 {[%clk 0:00:06.5]} 27... Nf6 {[%clk
0:01:18.4]} 28. Rf1 {[%clk 0:00:08.1]} 28... Rde8 {[%clk 0:01:18.1]} 29. g3
{[%clk 0:00:10]} 29... bxa4 {[%clk 0:01:18.6]} 30. Rf2 {[%clk 0:00:02.4]} 30...
d5 {[%clk 0:01:19.5]} 0-1

[Event "*** Titled Tuesday Blitz"]
[Site "Chess.com"]
[Date "2019.12.03"]
[Round "4"]
[White "petincash"]
[Black "LawrenceTrent"]
[Result "0-1"]
[WhiteElo "2427"]
[BlackElo "2672"]
[TimeControl "180+2"]
[EndTime "13:51:50 PST"]
[Termination "LawrenceTrent won on time"]

1. e4 {[%clk 0:03:01.9]} 1... g6 {[%clk 0:03:01.5]} 2. Bc4 {[%clk 0:03:00.7]}
2... Bg7 {[%clk 0:03:01.2]} 3. h4 {[%clk 0:02:56.8]} 3... h5 {[%clk 0:02:58.1]}
4. Nf3 {[%clk 0:02:56.9]} 4... e6 {[%clk 0:02:57.7]} 5. Ng5 {[%clk 0:02:57.7]}
5... d5 {[%clk 0:02:56.2]} 6. Bb3 {[%clk 0:02:43.5]} 6... Ne7 {[%clk 0:02:50]}
7. Nc3 {[%clk 0:02:37.2]} 7... Nbc6 {[%clk 0:02:44.2]} 8. d3 {[%clk 0:02:13.4]}
8... Nd4 {[%clk 0:02:38]} 9. Bd2 {[%clk 0:01:50.6]} 9... c5 {[%clk 0:02:37.7]}
10. Ba4+ {[%clk 0:01:32.6]} 10... Bd7 {[%clk 0:02:32.3]} 11. Bxd7+ {[%clk
0:01:24.7]} 11... Qxd7 {[%clk 0:02:28.3]} 12. Rb1 {[%clk 0:00:55.5]} 12... Nec6
{[%clk 0:02:24.7]} 13. Rh3 {[%clk 0:00:39.3]} 13... O-O-O {[%clk 0:02:16.7]} 14.
Ne2 {[%clk 0:00:26.7]} 14... f6 {[%clk 0:02:09]} 15. Nxd4 {[%clk 0:00:21.2]}
15... Nxd4 {[%clk 0:02:09.8]} 16. Nf3 {[%clk 0:00:21.7]} 16... dxe4 {[%clk
0:02:10.6]} 17. dxe4 {[%clk 0:00:17.9]} 17... Qc6 {[%clk 0:02:09.1]} 18. Nxd4
{[%clk 0:00:16.5]} 18... Rxd4 {[%clk 0:02:09.9]} 19. Qe2 {[%clk 0:00:11.3]}
19... Rxe4 {[%clk 0:02:08.3]} 20. Be3 {[%clk 0:00:12.7]} 20... Rd8 {[%clk
0:02:07.4]} 21. Kf1 {[%clk 0:00:12.1]} 21... f5 {[%clk 0:02:07.7]} 22. Qf3
{[%clk 0:00:10.8]} 22... Qd5 {[%clk 0:02:02.2]} 23. Rg3 {[%clk 0:00:10.6]} 23...
Rg4 {[%clk 0:02:00.1]} 24. Qxd5 {[%clk 0:00:09.8]} 24... Rxd5 {[%clk 0:02:00.8]}
25. Rxg4 {[%clk 0:00:08.5]} 25... hxg4 {[%clk 0:02:02]} 26. c4 {[%clk
0:00:09.7]} 26... Re5 {[%clk 0:02:00.8]} 27. b3 {[%clk 0:00:09.8]} 27... b6
{[%clk 0:01:58.7]} 28. Rd1 {[%clk 0:00:10.1]} 28... Re4 {[%clk 0:01:54.9]} 29.
g3 {[%clk 0:00:08.5]} 29... Bd4 {[%clk 0:01:53.4]} 30. Bg5 {[%clk 0:00:08.2]}
30... a6 {[%clk 0:01:47.7]} 31. Rd3 {[%clk 0:00:09.6]} 31... Kb7 {[%clk
0:01:48.3]} 32. b4 {[%clk 0:00:09.8]} 32... cxb4 {[%clk 0:01:47.5]} 33. a3
{[%clk 0:00:08.9]} 33... bxa3 {[%clk 0:01:44.8]} 34. Rxa3 {[%clk 0:00:10.8]}
34... a5 {[%clk 0:01:46.3]} 35. Rb3 {[%clk 0:00:11.6]} 35... Kc6 {[%clk
0:01:46.9]} 36. Bf4 {[%clk 0:00:09]} 36... Bc5 {[%clk 0:01:48]} 37. Rd3 {[%clk
0:00:07.1]} 37... Rd4 {[%clk 0:01:49.3]} 38. Rb3 {[%clk 0:00:07.1]} 38... Rxc4
{[%clk 0:01:50.4]} 39. Rb1 {[%clk 0:00:05.5]} 39... a4 {[%clk 0:01:51.2]} 40.
Rd1 {[%clk 0:00:06.4]} 40... Bd4 {[%clk 0:01:52.2]} 41. Re1 {[%clk 0:00:04.3]}
41... Kd5 {[%clk 0:01:51.2]} 0-1

[Event "*** Titled Tuesday Blitz"]
[Site "Chess.com"]
[Date "2019.12.03"]
[Round "4"]
[White "Caisachess"]
[Black "matiss90"]
[Result "0-1"]
[WhiteElo "2257"]
[BlackElo "2567"]
[TimeControl "180+2"]
[EndTime "13:51:51 PST"]
[Termination "matiss90 won by resignation"]

1. e4 {[%clk 0:03:01.9]} 1... c5 {[%clk 0:03:01]} 2. Nf3 {[%clk 0:03:01.9]} 2...
d6 {[%clk 0:03:02.3]} 3. c3 {[%clk 0:03:02.8]} 3... Nf6 {[%clk 0:03:02.9]} 4.
Bd3 {[%clk 0:03:04.3]} 4... Nc6 {[%clk 0:03:04]} 5. Bc2 {[%clk 0:03:04.7]} 5...
g6 {[%clk 0:03:05.1]} 6. O-O {[%clk 0:03:05.9]} 6... Bg7 {[%clk 0:03:06.2]} 7.
h3 {[%clk 0:03:07.4]} 7... O-O {[%clk 0:03:07.2]} 8. d4 {[%clk 0:03:08.9]} 8...
cxd4 {[%clk 0:03:07.3]} 9. cxd4 {[%clk 0:03:10]} 9... d5 {[%clk 0:03:08.6]} 10.
e5 {[%clk 0:03:09.4]} 10... Ne4 {[%clk 0:03:09.7]} 11. a3 {[%clk 0:03:10]} 11...
Bf5 {[%clk 0:03:08.3]} 12. Be3 {[%clk 0:03:02.7]} 12... Rc8 {[%clk 0:03:08.9]}
13. Bd3 {[%clk 0:03:03.4]} 13... Na5 {[%clk 0:03:06.8]} 14. Nh4 {[%clk 0:02:47]}
14... Qb6 {[%clk 0:02:56.8]} 15. Nxf5 {[%clk 0:02:46.4]} 15... gxf5 {[%clk
0:02:57.6]} 16. b4 {[%clk 0:02:36.5]} 16... Nc4 {[%clk 0:02:57.4]} 17. Ra2
{[%clk 0:02:21.8]} 17... Nxe3 {[%clk 0:02:17.8]} 18. fxe3 {[%clk 0:02:20.8]}
18... e6 {[%clk 0:02:18.9]} 19. Bxe4 {[%clk 0:02:08.8]} 19... dxe4 {[%clk
0:02:16.4]} 20. Rc2 {[%clk 0:01:58.8]} 20... Bh6 {[%clk 0:01:57.9]} 21. Kf2
{[%clk 0:01:27]} 21... a5 {[%clk 0:01:49.9]} 22. bxa5 {[%clk 0:01:18.3]} 22...
Bxe3+ {[%clk 0:01:10.2]} 23. Kxe3 {[%clk 0:01:12.1]} 23... Qb3+ {[%clk
0:01:10.6]} 24. Rc3 {[%clk 0:01:13.5]} 24... Rxc3+ {[%clk 0:01:10.7]} 25. Nxc3
{[%clk 0:01:14.1]} 25... Qxc3+ {[%clk 0:01:11.8]} 26. Kf4 {[%clk 0:01:15.5]}
26... Rd8 {[%clk 0:01:08.8]} 27. Kg5 {[%clk 0:01:01.9]} 27... Qxa3 {[%clk
0:00:59.1]} 28. Kh4 {[%clk 0:00:50.7]} 28... Qe7+ {[%clk 0:00:52.2]} 29. Kg3
{[%clk 0:00:51.4]} 29... Qg5+ {[%clk 0:00:52.8]} 30. Kh2 {[%clk 0:00:52.4]}
30... Qe3 {[%clk 0:00:51.9]} 31. Qb3 {[%clk 0:00:34.8]} 31... Qxb3 {[%clk
0:00:51.1]} 0-1

[Event "*** Titled Tuesday Blitz"]
[Site "Chess.com"]
[Date "2019.12.03"]
[Round "4"]
[White "NeverEverForever1990"]
[Black "Sjakkerntobi"]
[Result "1-0"]
[WhiteElo "2408"]
[BlackElo "2127"]
[TimeControl "180+2"]
[EndTime "13:51:54 PST"]
[Termination "NeverEverForever1990 won by checkmate"]

1. e4 {[%clk 0:03:01.9]} 1... c5 {[%clk 0:03:00.8]} 2. Nf3 {[%clk 0:02:59.2]}
2... e6 {[%clk 0:03:01.5]} 3. d4 {[%clk 0:02:49.3]} 3... cxd4 {[%clk 0:03:03.4]}
4. Nxd4 {[%clk 0:02:48.8]} 4... Nc6 {[%clk 0:03:04.9]} 5. Nc3 {[%clk 0:02:46.2]}
5... Qc7 {[%clk 0:03:05.4]} 6. Be3 {[%clk 0:02:42.9]} 6... a6 {[%clk 0:03:05.5]}
7. Qf3 {[%clk 0:02:37.7]} 7... d6 {[%clk 0:03:05.8]} 8. O-O-O {[%clk 0:02:22.4]}
8... Nf6 {[%clk 0:03:03.1]} 9. Qg3 {[%clk 0:02:08.2]} 9... Ne5 {[%clk 0:02:41]}
10. f4 {[%clk 0:02:05.1]} 10... Ng6 {[%clk 0:02:41.7]} 11. Be2 {[%clk
0:01:29.3]} 11... b5 {[%clk 0:02:38.1]} 12. e5 {[%clk 0:01:11.8]} 12... dxe5
{[%clk 0:02:23.9]} 13. fxe5 {[%clk 0:01:12.5]} 13... Nd7 {[%clk 0:02:24.4]} 14.
Bf3 {[%clk 0:01:00]} 14... Bb7 {[%clk 0:02:18.6]} 15. h4 {[%clk 0:00:57.7]}
15... h5 {[%clk 0:02:02.5]} 16. Nxe6 {[%clk 0:00:56.7]} 16... Qb8 {[%clk
0:01:49.9]} 17. Ng5 {[%clk 0:00:46.3]} 17... Bxf3 {[%clk 0:01:48.7]} 18. Qxf3
{[%clk 0:00:43.9]} 18... Ndxe5 {[%clk 0:01:47.1]} 19. Qe4 {[%clk 0:00:41.8]}
19... Be7 {[%clk 0:01:44]} 20. Nd5 {[%clk 0:00:39.6]} 20... Nc6 {[%clk
0:00:35.7]} 21. Bf4 {[%clk 0:00:25.3]} 21... Nxf4 {[%clk 0:00:30.5]} 22. Nxf4
{[%clk 0:00:20.9]} 22... Qb7 {[%clk 0:00:21.5]} 23. Nxf7 {[%clk 0:00:19.9]}
23... Kxf7 {[%clk 0:00:22.6]} 24. Qg6+ {[%clk 0:00:18.2]} 24... Kg8 {[%clk
0:00:23.9]} 25. Qe6+ {[%clk 0:00:19.5]} 25... Kf8 {[%clk 0:00:24.5]} 26. Ng6+
{[%clk 0:00:20.4]} 26... Ke8 {[%clk 0:00:26.4]} 27. Nxh8 {[%clk 0:00:21.5]}
27... Rd8 {[%clk 0:00:26.6]} 28. Qf7# {[%clk 0:00:21.6]} 1-0

[Event "*** Titled Tuesday Blitz"]
[Site "Chess.com"]
[Date "2019.12.03"]
[Round "4"]
[White "chesstatour"]
[Black "Jadeit90"]
[Result "0-1"]
[WhiteElo "1955"]
[BlackElo "2270"]
[TimeControl "180+2"]
[EndTime "13:52:00 PST"]
[Termination "Jadeit90 won by resignation"]

1. c4 {[%clk 0:03:01.9]} 1... Nf6 {[%clk 0:02:59.9]} 2. Nc3 {[%clk 0:03:01.7]}
2... e5 {[%clk 0:03:01.2]} 3. Nf3 {[%clk 0:03:01.8]} 3... Nc6 {[%clk 0:03:00.7]}
4. d4 {[%clk 0:03:02.5]} 4... exd4 {[%clk 0:03:01.1]} 5. Nxd4 {[%clk 0:03:04.4]}
5... Bb4 {[%clk 0:03:01.9]} 6. g3 {[%clk 0:03:03.1]} 6... Bxc3+ {[%clk 0:03:02]}
7. bxc3 {[%clk 0:03:03.6]} 7... O-O {[%clk 0:03:03.2]} 8. Bg2 {[%clk 0:03:03.9]}
8... Qe7 {[%clk 0:03:04.3]} 9. O-O {[%clk 0:03:02.8]} 9... Qc5 {[%clk
0:03:05.3]} 10. Qa4 {[%clk 0:01:40.3]} 10... d6 {[%clk 0:02:56.5]} 11. Nxc6
{[%clk 0:01:39]} 11... bxc6 {[%clk 0:02:56.9]} 12. Qxc6 {[%clk 0:01:38]} 12...
Qxc6 {[%clk 0:02:56.8]} 13. Bxc6 {[%clk 0:01:39.1]} 13... Rb8 {[%clk 0:02:58.1]}
14. Be3 {[%clk 0:01:34.2]} 14... Ba6 {[%clk 0:02:56.4]} 15. Bxa7 {[%clk
0:01:12.6]} 15... Rb2 {[%clk 0:02:57.4]} 16. Bb5 {[%clk 0:00:37.1]} 16... Bxb5
{[%clk 0:02:56.5]} 17. cxb5 {[%clk 0:00:39]} 17... Rxb5 {[%clk 0:02:57.9]} 18.
Rfb1 {[%clk 0:00:29.6]} 18... Ra5 {[%clk 0:02:58.9]} 19. Bb8 {[%clk 0:00:18.2]}
19... Rc8 {[%clk 0:02:53.7]} 20. Rb7 {[%clk 0:00:17.1]} 20... Ne8 {[%clk
0:02:49]} 21. a4 {[%clk 0:00:10.2]} 21... Ra8 {[%clk 0:02:48.8]} 22. Ba7 {[%clk
0:00:10.3]} 22... Kf8 {[%clk 0:02:48.2]} 23. a5 {[%clk 0:00:08.3]} 23... Ke7
{[%clk 0:02:49.6]} 24. Be3 {[%clk 0:00:05.9]} 24... Ra6 {[%clk 0:02:47]} 25. Ra7
{[%clk 0:00:05.6]} 25... Rxa7 {[%clk 0:02:47.3]} 26. Bxa7 {[%clk 0:00:07.5]}
26... Ra8 {[%clk 0:02:48.8]} 27. Be3 {[%clk 0:00:05.8]} 27... Ra6 {[%clk
0:02:49.9]} 28. c4 {[%clk 0:00:04.4]} 28... Kd7 {[%clk 0:02:51.3]} 29. Bd2
{[%clk 0:00:05.2]} 29... Nf6 {[%clk 0:02:48.1]} 30. f3 {[%clk 0:00:05.3]} 30...
Kc6 {[%clk 0:02:46.2]} 31. Bb4 {[%clk 0:00:06.1]} 31... Nd7 {[%clk 0:02:47.1]}
32. Kf2 {[%clk 0:00:05.1]} 32... Nc5 {[%clk 0:02:48.2]} 33. Bxc5 {[%clk
0:00:06.1]} 33... Kxc5 {[%clk 0:02:49.5]} 34. Ke3 {[%clk 0:00:07.5]} 34... c6
{[%clk 0:02:45.4]} 35. Kd3 {[%clk 0:00:06]} 35... Kb4 {[%clk 0:02:46.6]} 36. Kd4
{[%clk 0:00:05.5]} 36... Rxa5 {[%clk 0:02:44.8]} 37. Rxa5 {[%clk 0:00:05.8]}
37... Kxa5 {[%clk 0:02:46]} 38. c5 {[%clk 0:00:05.4]} 38... d5 {[%clk
0:02:46.7]} 39. Ke5 {[%clk 0:00:03.6]} 39... Kb5 {[%clk 0:02:21.1]} 40. Kd6
{[%clk 0:00:04.6]} 40... d4 {[%clk 0:02:22.3]} 41. f4 {[%clk 0:00:05.5]} 41...
f5 {[%clk 0:02:21.4]} 42. h3 {[%clk 0:00:04.7]} 42... h5 {[%clk 0:02:15]} 43.
Ke5 {[%clk 0:00:03.9]} 43... Kxc5 {[%clk 0:02:15.5]} 44. Kxf5 {[%clk 0:00:04.8]}
44... Kd5 {[%clk 0:02:12.8]} 45. g4 {[%clk 0:00:03.6]} 45... hxg4 {[%clk
0:02:09.5]} 46. Kxg4 {[%clk 0:00:03.3]} 46... c5 {[%clk 0:02:10.6]} 47. f5
{[%clk 0:00:03]} 47... c4 {[%clk 0:02:11.7]} 48. f6 {[%clk 0:00:03.8]} 48...
gxf6 {[%clk 0:02:11.5]} 49. h4 {[%clk 0:00:05.5]} 49... c3 {[%clk 0:02:12.8]}
50. h5 {[%clk 0:00:07.3]} 50... c2 {[%clk 0:02:14.7]} 51. h6 {[%clk 0:00:09]}
51... c1=Q {[%clk 0:02:16.3]} 52. h7 {[%clk 0:00:09.9]} 52... Qh6 {[%clk
0:02:17.6]} 0-1

[Event "*** Titled Tuesday Blitz"]
[Site "Chess.com"]
[Date "2019.12.03"]
[Round "4"]
[White "pouya21"]
[Black "Oleksandr_Bortnyk"]
[Result "0-1"]
[WhiteElo "2730"]
[BlackElo "2935"]
[TimeControl "180+2"]
[EndTime "13:52:03 PST"]
[Termination "Oleksandr_Bortnyk won by resignation"]

1. e4 {[%clk 0:03:01.9]} 1... Nf6 {[%clk 0:02:58.4]} 2. e5 {[%clk 0:03:03]} 2...
Nd5 {[%clk 0:02:59.9]} 3. d4 {[%clk 0:03:03.7]} 3... d6 {[%clk 0:03:00.7]} 4.
Nf3 {[%clk 0:03:01.9]} 4... dxe5 {[%clk 0:02:58]} 5. Nxe5 {[%clk 0:02:58.8]}
5... c6 {[%clk 0:02:59.4]} 6. Be2 {[%clk 0:02:56.2]} 6... Bf5 {[%clk 0:03:00.3]}
7. O-O {[%clk 0:02:56.3]} 7... Nd7 {[%clk 0:03:01.8]} 8. Nf3 {[%clk 0:02:57.2]}
8... e6 {[%clk 0:03:01.8]} 9. c4 {[%clk 0:02:58.3]} 9... N5f6 {[%clk 0:03:03.2]}
10. Nc3 {[%clk 0:02:59.4]} 10... Bd6 {[%clk 0:03:04.2]} 11. Nh4 {[%clk
0:03:00.9]} 11... Bg6 {[%clk 0:03:05.3]} 12. g3 {[%clk 0:03:02.3]} 12... O-O
{[%clk 0:03:04.3]} 13. Nxg6 {[%clk 0:03:03]} 13... hxg6 {[%clk 0:03:06.2]} 14.
Bf3 {[%clk 0:03:04.6]} 14... Re8 {[%clk 0:03:06]} 15. Be3 {[%clk 0:03:00.1]}
15... e5 {[%clk 0:03:03.4]} 16. d5 {[%clk 0:03:00.5]} 16... Qc7 {[%clk
0:03:03.6]} 17. Qc2 {[%clk 0:02:54.3]} 17... Bc5 {[%clk 0:02:50.2]} 18. dxc6
{[%clk 0:02:53]} 18... bxc6 {[%clk 0:02:18.3]} 19. Rfe1 {[%clk 0:02:51.1]} 19...
Rab8 {[%clk 0:01:57.2]} 20. Rad1 {[%clk 0:02:36.6]} 20... Bxe3 {[%clk
0:01:57.9]} 21. Rxe3 {[%clk 0:02:37.7]} 21... Nc5 {[%clk 0:01:59.8]} 22. Rde1
{[%clk 0:02:37]} 22... Red8 {[%clk 0:01:40.8]} 23. R1e2 {[%clk 0:02:23.2]} 23...
Ne6 {[%clk 0:01:41.5]} 24. Re1 {[%clk 0:02:13.5]} 24... Nd4 {[%clk 0:01:38.6]}
25. Qc1 {[%clk 0:02:13.5]} 25... Qd7 {[%clk 0:00:48.1]} 26. b3 {[%clk
0:01:56.5]} 26... Nxf3+ {[%clk 0:00:43.6]} 27. Rxf3 {[%clk 0:01:57.3]} 27... Qh3
{[%clk 0:00:45.5]} 28. Qg5 {[%clk 0:01:46.8]} 28... Ng4 {[%clk 0:00:24.1]} 29.
Qh4 {[%clk 0:01:47.2]} 29... Qxh4 {[%clk 0:00:25.7]} 30. gxh4 {[%clk 0:01:49.1]}
30... f5 {[%clk 0:00:27.6]} 31. h5 {[%clk 0:01:50.6]} 31... e4 {[%clk
0:00:27.4]} 32. Rh3 {[%clk 0:01:47.7]} 32... Ne5 {[%clk 0:00:26.8]} 33. Kg2
{[%clk 0:01:40.3]} 33... Nd3 {[%clk 0:00:27.1]} 34. Ree3 {[%clk 0:01:35.5]}
34... Nf4+ {[%clk 0:00:28.3]} 35. Kg3 {[%clk 0:01:37.2]} 35... Nxh3 {[%clk
0:00:29.7]} 36. Kxh3 {[%clk 0:01:38.9]} 36... gxh5 {[%clk 0:00:28.6]} 37. Kh4
{[%clk 0:01:39.4]} 37... Rd3 {[%clk 0:00:28.8]} 38. Ne2 {[%clk 0:01:33.6]} 38...
Rxe3 {[%clk 0:00:27.4]} 39. fxe3 {[%clk 0:01:35.5]} 39... Rd8 {[%clk 0:00:27.4]}
40. Nd4 {[%clk 0:01:36.6]} 40... g5+ {[%clk 0:00:14.5]} 0-1

[Event "*** Titled Tuesday Blitz"]
[Site "Chess.com"]
[Date "2019.12.03"]
[Round "4"]
[White "sergeikim"]
[Black "HanSchut"]
[Result "1-0"]
[WhiteElo "2495"]
[BlackElo "2329"]
[TimeControl "180+2"]
[EndTime "13:52:05 PST"]
[Termination "sergeikim won by resignation"]

1. d4 {[%clk 0:03:01.9]} 1... Nf6 {[%clk 0:03:00]} 2. c4 {[%clk 0:03:02.7]} 2...
g6 {[%clk 0:03:01.1]} 3. Nc3 {[%clk 0:03:03.6]} 3... d5 {[%clk 0:03:02.5]} 4.
cxd5 {[%clk 0:03:03.9]} 4... Nxd5 {[%clk 0:03:04]} 5. e4 {[%clk 0:03:04.8]} 5...
Nxc3 {[%clk 0:03:05.6]} 6. bxc3 {[%clk 0:03:05.8]} 6... Bg7 {[%clk 0:03:07.2]}
7. Bc4 {[%clk 0:03:06.4]} 7... c5 {[%clk 0:03:08.6]} 8. Ne2 {[%clk 0:03:06.9]}
8... Nc6 {[%clk 0:03:07.6]} 9. Be3 {[%clk 0:03:06.9]} 9... O-O {[%clk
0:03:07.7]} 10. O-O {[%clk 0:03:06.4]} 10... Bg4 {[%clk 0:03:09.2]} 11. f3
{[%clk 0:03:06.7]} 11... cxd4 {[%clk 0:03:10.7]} 12. cxd4 {[%clk 0:03:06.9]}
12... Na5 {[%clk 0:03:11.6]} 13. Bd3 {[%clk 0:03:07.4]} 13... Be6 {[%clk
0:03:11.9]} 14. Qd2 {[%clk 0:03:07.4]} 14... Nc4 {[%clk 0:03:07.3]} 15. Bxc4
{[%clk 0:03:08.2]} 15... Bxc4 {[%clk 0:03:08.9]} 16. Rfd1 {[%clk 0:03:09.6]}
16... e6 {[%clk 0:02:58.3]} 17. Ng3 {[%clk 0:03:10.2]} 17... b5 {[%clk
0:02:53.1]} 18. Bh6 {[%clk 0:03:10.3]} 18... Qe7 {[%clk 0:02:12.4]} 19. Bxg7
{[%clk 0:03:01.1]} 19... Kxg7 {[%clk 0:02:14.3]} 20. Qf4 {[%clk 0:03:00.3]}
20... h5 {[%clk 0:02:03]} 21. e5 {[%clk 0:02:57.6]} 21... Bd5 {[%clk 0:01:58.2]}
22. Rd2 {[%clk 0:02:45.5]} 22... Rac8 {[%clk 0:01:51.6]} 23. Rf1 {[%clk
0:02:43.5]} 23... Rc4 {[%clk 0:01:47.4]} 24. h4 {[%clk 0:02:39.3]} 24... Rd8
{[%clk 0:01:39.2]} 25. Rfd1 {[%clk 0:02:36.5]} 25... a5 {[%clk 0:01:34.2]} 26.
Kh2 {[%clk 0:02:33.6]} 26... b4 {[%clk 0:01:34.3]} 27. Kh3 {[%clk 0:02:29.2]}
27... a4 {[%clk 0:01:33.2]} 28. Qe3 {[%clk 0:02:29.6]} 28... Rc3 {[%clk
0:01:26.1]} 29. Qf4 {[%clk 0:02:27.7]} 29... b3 {[%clk 0:01:19]} 30. axb3 {[%clk
0:02:27.5]} 30... axb3 {[%clk 0:01:16.2]} 31. Ne4 {[%clk 0:02:26.1]} 31... Bxe4
{[%clk 0:01:13.9]} 32. Qxe4 {[%clk 0:02:25.2]} 32... Rdc8 {[%clk 0:00:59.9]} 33.
Qf4 {[%clk 0:02:19.8]} 33... Rc2 {[%clk 0:00:55.1]} 34. Rxc2 {[%clk 0:02:14.2]}
34... Rxc2 {[%clk 0:00:44.4]} 35. Qe4 {[%clk 0:02:04.7]} 35... Qc7 {[%clk
0:00:36]} 36. Rb1 {[%clk 0:01:57.8]} 36... b2 {[%clk 0:00:33.1]} 37. Qf4 {[%clk
0:01:57.8]} 37... Kg8 {[%clk 0:00:27.8]} 38. Qe4 {[%clk 0:01:36.7]} 38... Qc3
{[%clk 0:00:18.9]} 39. Qa8+ {[%clk 0:01:26]} 39... Kg7 {[%clk 0:00:19.5]} 40.
Qd8 {[%clk 0:01:24.7]} 40... Qxd4 {[%clk 0:00:13.6]} 41. Qxd4 {[%clk 0:01:24.4]}
1-0